[Event "Tirnavia Reti Memorial-GM 2022"]
[Site "Trnava"]
[Date "2022.08.12"]
[Round "3.5"]
[White "Farkas, Gabor"]
[Black "Pechac, Jergus"]
[Result "0-1"]
[ECO "D77"]
[WhiteElo "2335"]
[BlackElo "2594"]
[Annotator "TA"]
[PlyCount "100"]
[EventDate "2022.08.10"]
[EventType "tourn"]
[EventCountry "SVK"]
[SourceTitle "playchess.com"]
[Source "ChessBase"]
[SourceQuality "1"]
[TimeControl "40/5400+30:1800+30"]

{[%evp 13,100,13,21,13,27,16,22,0,6,-114,-102,-108,-62,-95,-89,-81,-87,-172,-172,-174,-171,-161,-167,-204,-185,-199,-183,-209,-209,-209,-215,-212,-216,-216,-216,-213,-218,-249,-216,-216,-200,-258,-258,-239,-229,-294,-293,-273,-258,-520,-520,-500,-492,-521,-509,-1153,-1010,-828,-828,-29969,-29971,-29971,-29971,-29972,-29973,-29973,-29974,-29974,-29975,-29975,-29976,-29976,-29977,-29977,-29978,-29977,-29978,-29979,-29976,-29976,-29977,-29977,-29977,-29977,-29978,-29978,-29979,-29980,-29978]} 1. d4 {[%emt 0:00:05]} Nf6 {[%emt 0:00:20]} 2. Nf3 {[%emt 0:00:06]} g6 {[%emt 0:01:12]} 3. g3 {[%emt 0:00:29]} d5 {[%emt 0:00:16]} 4. Bg2 {[%emt 0:00:08]} Bg7 {[%emt 0:00:06]} 5. O-O {[%emt 0:00:05]} O-O {[%emt 0:00:07]} 6. c4 {[%emt 0:01:58]} dxc4 {[%emt 0:00:14]} 7. Na3 {[%emt 0:00:41]} a5 {[%emt 0:00:42] 7...c5 is setting a new trend.} 8. Nxc4 {[%emt 0:01:07] 8.Ne5 is not played anymore. D77: Fianchetto Grünfeld: 6 0-0: Replies other than 6...c6.} a4 $5 {[%emt 0:00:00][%mdl 4] Leaves trodden paths.} 9. Bf4 {[%emt 0:06:09]} Be6 {[%emt 0:03:03] [#]} 10. Ne3 $146 {[%emt 0:11:02] The position is equal.} ({Predecessor:} 10. Nfe5 Bd5 11. f3 Bxc4 12. Nxc4 Nd5 13. Bc1 Nc6 14. e3 b5 15. Na3 b4 16. Nc4 {0-1 (31) Mikhalevski,V (2562)-Oparin,G (2681) Warsaw 2021}) 10... Nc6 {[%emt 0:05:31]} 11. Ne5 {[%emt 0:12:03]} (11. Re1 $11 {keeps the balance.}) 11... Nxd4 $17 {[%emt 0:03:48]} 12. Bxb7 {[%emt 0:00:14]} Ra7 {[%emt 0:02:34]} (12... Rb8 $17 13. Nc6 Nxc6 14. Bxc6 Qxd1 15. Nxd1 Nh5 16. Bxa4 Nxf4 17. gxf4 Rb4) 13. Nc6 {[%emt 0:10:36]} Nxc6 {[%emt 0:00:07]} 14. Bxc6 {[%emt 0:00:05]} Nh5 {[%emt 0:01:05]} 15. Qc2 {[%emt 0:04:40]} (15. Bg5 $17) 15... Nxf4 $19 {[%emt 0:00:32]} 16. gxf4 {[%emt 0:00:06]} Qd4 {[%emt 0:01:17][%csl LRb2,LRf4]} 17. f5 {[%emt 0:06:14]} gxf5 {[%emt 0:00:12]} 18. Nxf5 {[%emt 0:02:21]} Qg4+ {[%emt 0:00:07]} ({Stronger than} 18... Qxb2 19. Rac1 $17) 19. Ng3 {[%emt 0:00:10]} a3 {[%emt 0:00:08]} 20. bxa3 {[%emt 0:03:47]} Bxa1 {[%emt 0:00:23]} ({Inferior is} 20... Rxa3 21. Bf3 Qa4 22. Rac1 $17) 21. Rxa1 {[%emt 0:00:07]} Rxa3 {[%emt 0:00:26]} 22. Qc5 {[%emt 0:01:29]} Qg7 {[%emt 0:01:00]} 23. Rc1 {[%emt 0:02:54]} Rxa2 {[%emt 0:00:15]} 24. Qxe7 {[%emt 0:01:04]} Rxe2 {[%emt 0:00:19]} 25. Bf3 {[%emt 0:02:11]} Ra2 {[%emt 0:02:40] ...Ra1 is the strong threat.} 26. Qxc7 {[%emt 0:04:08]} Qd4 {[%emt 0:02:23]} 27. Qc5 {[%emt 0:02:28]} Qxc5 {[%emt 0:00:46]} 28. Rxc5 {[%emt 0:00:00]} Bh3 {[%emt 0:00:53]} 29. Bg2 {[%emt 0:01:14]} Ra1+ {[%emt 0:00:12]} 30. Nf1 {[%emt 0:00:11]} Be6 {[%emt 0:00:12]} 31. Rc2 {[%emt 0:07:46]} (31. Bf3) 31... Rc8 {[%emt 0:00:25]} 32. Rxc8+ {[%emt 0:01:06]} Bxc8 {[%emt 0:00:05][%mdl 4096] Endgame KRB-KBN} 33. f3 {[%emt 0:00:11]} f5 {[%emt 0:02:08][%cal Bf7f5,Bf5f4][%mdl 32] [#] White must now prevent ...f4.} 34. Bh3 {[%emt 0:00:31]} (34. f4 $142 Ra4 35. Ne3) 34... Ba6 {[%emt 0:00:16] ( -> ...Bxf1)} 35. Kf2 {[%emt 0:00:28]} Bxf1 {[%emt 0:00:52]} 36. Bxf1 {[%emt 0:00:08] KR-KB} f4 {[%emt 0:00:11] Black mates.} 37. Kg2 {[%emt 0:00:21]} Kg7 {[%emt 0:00:18]} 38. Bd3 {[%emt 0:00:12]} h6 {[%emt 0:00:46]} 39. Kh3 {[%emt 0:00:11]} Rg1 {[%emt 0:00:07]} 40. Kh4 {[%emt 0:01:05]} Rg5 {[%emt 0:00:07]} 41. Be4 {[%emt 0:30:23]} Kf6 {[%emt 0:30:07]} 42. Bd3 {[%emt 0:01:53]} Ke5 {[%emt 0:00:05]} 43. Be4 {[%emt 0:00:29]} Kd4 {[%emt 0:00:05]} 44. Bb7 {[%emt 0:00:19]} Ke3 {[%emt 0:00:06]} 45. Be4 {[%emt 0:00:10]} Kf2 {[%emt 0:00:06]} 46. Kh3 {[%emt 0:00:30]} Rg2 {[%emt 0:01:16]} 47. Bd5 {[%emt 0:00:17]} Kg1 {[%emt 0:00:19]} 48. Be6 {[%emt 0:00:23]} h5 {[%emt 0:00:22][%csl Gg1][%cal Rg2h2]} 49. Kh4 {[%emt 0:00:12]} Kxh2 {[%emt 0:00:13]} 50. Kxh5 {[%emt 0:00:17]} Kg3 {[%emt 0:00:08] Weighted Error Value: White=0.35/Black=0.03 (flawless)} 0-1

[Event "Tirnavia Reti Memorial-GM 2022"]
[Site "Trnava"]
[Date "2022.08.12"]
[Round "3.6"]
[White "Straka, Jozef"]
[Black "Papp, Levente"]
[Result "1/2-1/2"]
[ECO "D46"]
[WhiteElo "2300"]
[BlackElo "2394"]
[Annotator "TA"]
[PlyCount "38"]
[EventDate "2022.08.10"]
[EventType "tourn"]
[EventCountry "SVK"]
[SourceTitle "playchess.com"]
[Source "ChessBase"]
[SourceQuality "1"]
[TimeControl "40/5400+30:1800+30"]

{[%evp 23,38,13,41,14,15,17,18,17,7,0,13,0,8,0,27,0,12]} 1. d4 {[%emt 0:00:08]} d5 {[%emt 0:00:14]} 2. c4 {[%emt 0:00:07]} c6 {[%emt 0:00:10]} 3. Nf3 {[%emt 0:00:39]} Nf6 {[%emt 0:00:07]} 4. e3 {[%emt 0:01:37]} e6 {[%emt 0:01:42]} 5. Nbd2 {[%emt 0:00:17]} Nbd7 {[%emt 0:01:16]} 6. Bd3 {[%emt 0:00:15]} Be7 {[%emt 0:04:48]} 7. O-O {[%emt 0:00:21]} O-O {[%emt 0:00:07]} 8. e4 {[%emt 0:00:32]} dxe4 {[%emt 0:00:54]} 9. Nxe4 {[%emt 0:00:03]} c5 {[%emt 0:00:40]} 10. Nxc5 {[%emt 0:07:50]} Nxc5 {[%emt 0:02:53]} 11. dxc5 {[%emt 0:00:15]} Qc7 {[%emt 0:00:45] was the old line (11...Bxc5).} 12. Qc2 {[%emt 0:12:42]} Qxc5 {[%emt 0:00:47]} 13. Re1 {[%emt 0:06:15] [#] D46: Semi-Slav: 5 e3 Nbd7 6 Bd3, Black avoids the Meran.} b6 $146 {[%emt 0:10:43]} ({Predecessor:} 13... h6 14. Re5 Qc7 15. Bxh6 gxh6 16. Qd2 Ng4 17. Rh5 Rd8 18. h3 Bg5 19. Nxg5 Qh2+ 20. Kf1 Qh1+ {1-0 (54) Vitak,P (2181)-Vojta,P (2194) Czech Republic 2006}) 14. Be3 {[%emt 0:15:07][%cal Bc1e3,Be3d4,Bd4e5][%mdl 32]} (14. Bd2 {with more complications.} Bb7 15. Ne5 h6 16. Bc3) 14... Qc7 {[%emt 0:00:12]} 15. Bd4 {[%emt 0:00:57]} h6 {[%emt 0:00:23]} 16. Be5 {[%emt 0:01:18]} Qc5 {[%emt 0:04:30]} 17. Bd4 {[%emt 0:09:47]} Qc7 {[%emt 0:00:09]} 18. Be5 {[%emt 0:00:05]} Qc5 {[%emt 0:00:21]} 19. Bd4 {[%emt 0:00:26]} Qc7 $1 {[%emt 0:00:06] An uneventful encounter.  Weighted Error Value: White=0.12 (very precise) /Black=0.05 (flawless)} 1/2-1/2

[Event "Tirnavia Reti Memorial-GM 2022"]
[Site "Trnava"]
[Date "2022.08.12"]
[Round "3.7"]
[White "Lanc, Alois"]
[Black "Skreno, Vladimir"]
[Result "1-0"]
[ECO "B32"]
[WhiteElo "2263"]
[BlackElo "2083"]
[Annotator "TA"]
[PlyCount "81"]
[EventDate "2022.08.10"]
[EventType "tourn"]
[EventCountry "SVK"]
[SourceTitle "playchess.com"]
[Source "ChessBase"]
[SourceQuality "1"]
[TimeControl "40/5400+30:1800+30"]

{[%evp 16,81,20,23,31,25,18,23,31,20,65,64,56,60,60,68,87,88,112,121,125,122,104,91,86,80,107,85,160,155,156,123,220,195,170,75,86,33,151,30,13,4,85,18,59,40,93,93,279,258,380,371,360,210,279,247,803,787,2073,1979,29990,2443,29976,29975,29971,29971,2682,2364]} 1. e4 {[%emt 0:00:05]} c5 {[%emt 0:00:16]} 2. Nf3 {[%emt 0:00:16]} Nc6 {[%emt 0:00:12]} 3. d4 {[%emt 0:00:13]} cxd4 {[%emt 0:00:17]} 4. Nxd4 {[%emt 0:00:06]} e5 {[%emt 0:03:47]} 5. Nb5 {[%emt 0:00:07]} a6 {[%emt 0:00:04]} 6. Nd6+ {[%emt 0:00:26]} Bxd6 {[%emt 0:00:03]} 7. Qxd6 {[%emt 0:00:09]} Qf6 {[%emt 0:02:53]} 8. Qd2 {[%emt 0:01:02]} Nge7 {[%emt 0:01:38]} 9. Nc3 {[%emt 0:00:53]} d6 {[%emt 0:04:16] B32: Sicilian: Löwenthal and Kalashnikov Variations.} 10. b3 {[%emt 0:02:26]} O-O {[%emt 0:10:03]} 11. Bb2 {[%emt 0:00:30]} Rd8 {[%emt 0:12:15] White has an edge.} 12. O-O-O {[%emt 0:01:07] [#]} Be6 $146 {[%emt 0:02:53]} ({Predecessor:} 12... b5 13. Kb1 Bb7 14. g3 Nd4 15. Bg2 Rac8 16. Rc1 b4 17. Nd5 Bxd5 18. exd5 Nb5 19. Qxb4 Qxf2 {1-0 (27) Kernazhitsky,L (2285)-O'Donnell,T (2354) Radebeul 2016}) 13. Nd5 $1 {[%emt 0:10:44]} Bxd5 {[%emt 0:06:43]} 14. exd5 {[%emt 0:00:13]} Nb8 {[%emt 0:01:51]} 15. g3 {[%emt 0:02:46]} Nd7 {[%emt 0:02:24]} 16. f4 {[%emt 0:04:31]} b5 {[%emt 0:04:27]} 17. Bg2 {[%emt 0:03:40]} Rac8 {[%emt 0:03:54]} 18. fxe5 {[%emt 0:10:38]} Nxe5 {[%emt 0:02:30][%cal Oc8c2]} 19. Be4 {[%emt 0:06:52] Strongly threatening Rhf1.} N7g6 {[%emt 0:10:57]} 20. h4 {[%emt 0:04:02][%cal Bh2h4,Bh4h5,Bh5h6][%mdl 32]} Qe7 {[%emt 0:02:06][%cal Oe5c4]} 21. Rhe1 {[%emt 0:01:44]} Qc7 {[%emt 0:02:06]} (21... f6 $142) 22. h5 $1 $16 {[%emt 0:08:18]} Nf8 {[%emt 0:00:21]} 23. Kb1 {[%emt 0:11:37][%cal Og3g4]} a5 {[%emt 0:09:28]} (23... h6 $16) 24. h6 {[%emt 0:02:11]} g6 {[%emt 0:00:44]} 25. Rc1 {[%emt 0:09:15]} (25. Bxe5 $18 dxe5 26. d6) 25... Re8 {[%emt 0:01:02]} 26. Qf4 {[%emt 0:02:40]} (26. Bd3 $16) 26... f5 {[%emt 0:02:16]} ({Black should play} 26... Nfd7 $1 $14) 27. Bg2 {[%emt 0:01:11]} (27. Bd3 $16) 27... Nfd7 $11 {[%emt 0:00:35]} 28. Bf1 {[%emt 0:00:55]} Rb8 {[%emt 0:01:16]} (28... Qc5 $11) 29. Re3 {[%emt 0:04:30]} (29. Be2 $16) 29... Rf8 {[%emt 0:04:20]} 30. Rc3 $36 {[%emt 0:00:59][%mdl 2048] Black is under pressure.} Qb7 {[%emt 0:02:36] [#]} (30... Nc5 $14) 31. Bg2 $1 $16 {[%emt 0:03:02]} Nf6 $2 {[%emt 0:00:08] [#] This costs Black the game.} (31... Ra8 $16 {is a better defense.}) 32. Rc6 $1 $18 {[%emt 0:00:45]} Nxc6 {[%emt 0:01:46]} (32... Nh5 {keeps fighting.} 33. Qd2 Qd7) 33. dxc6 {[%emt 0:00:06]} Qe7 {[%emt 0:00:37]} 34. Rd1 {[%emt 0:01:26]} (34. Qd4 $142) 34... Rbd8 {[%emt 0:03:42]} 35. Qd4 {[%emt 0:01:34]} Rf7 $2 {[%emt 0:00:52]} (35... d5 36. Bf3 Kf7) 36. g4 {[%emt 0:02:48]} fxg4 {[%emt 0:01:52]} 37. Bd5 {[%emt 0:00:43] White wants to mate with Rf1. This bishop pair is nice.} Rdf8 {[%emt 0:00:58]} 38. c7 {[%emt 0:01:15]} (38. Rf1 $142 Ra8 39. Qxf6 Qxf6 40. Rxf6 Re8 41. c7 Re1+ 42. Bc1 Re8 43. Bxf7+ Kh8 44. Bxe8 Kg8 45. c8=Q Kh8 46. Bxb5#) 38... Qe5 {[%emt 0:00:38]} 39. Bxf7+ {[%emt 0:01:07]} Kxf7 {[%emt 0:00:02]} 40. Qxe5 {[%emt 0:02:34]} dxe5 {[%emt 0:00:19]} 41. Rd8 {[%emt 0:30:09] Weighted Error Value: White=0.22 (precise) /Black=0.77} 1-0

[Event "Tirnavia Reti Memorial-GM 2022"]
[Site "Trnava"]
[Date "2022.08.12"]
[Round "3.8"]
[White "Bures, Jaroslav"]
[Black "Petran, Peter"]
[Result "1-0"]
[ECO "B15"]
[WhiteElo "2416"]
[BlackElo "2234"]
[Annotator "TA"]
[PlyCount "127"]
[EventDate "2022.08.10"]
[EventType "tourn"]
[EventCountry "SVK"]
[SourceTitle "playchess.com"]
[Source "ChessBase"]
[SourceQuality "1"]
[TimeControl "40/5400+30:1800+30"]

{[%evp 12,127,37,18,79,74,79,66,72,66,72,76,72,54,66,58,63,58,73,62,70,65,79,31,41,0,47,49,112,62,106,75,92,88,88,88,86,86,86,93,92,85,81,105,110,85,84,91,94,89,81,10,54,53,55,27,58,58,55,56,60,62,71,8,8,-6,-7,-887,-186,-864,-327,-690,0,0,0,0,0,0,55,47,52,52,55,53,77,18,28,16,18,8,16,0,0,0,0,0,462,441,419,409,392,267,723,697,625,604,1251,1272,2075,2230,3991,3343,3254,834,29970,29968,29953,11129]} 1. d4 {[%emt 0:00:06]} g6 {[%emt 0:00:17]} 2. e4 {[%emt 0:00:04]} Bg7 {[%emt 0:00:07]} 3. Nc3 {[%emt 0:00:26]} c6 {[%emt 0:00:34]} 4. Nf3 {[%emt 0:00:44]} d5 {[%emt 0:00:11]} 5. Bf4 {[%emt 0:00:29]} Bg4 {[%emt 0:02:06]} 6. exd5 {[%emt 0:00:03]} cxd5 {[%emt 0:00:21]} 7. Nb5 {[%emt 0:00:01]} Na6 {[%emt 0:01:08] Prevents Nc7+. B15: Caro-Kann: 3 Nc3: 3...g6 and 3...dxe4 4 Nxe4 Nf6 5 Nxf6+ exf6.} (7... Kf8 $1 $11 {remains equal.}) 8. h3 $16 {[%emt 0:00:06]} Bxf3 {[%emt 0:00:48]} 9. Qxf3 {[%emt 0:00:02]} (9. gxf3 Nf6 $11) 9... Nf6 {[%emt 0:00:14] White is slightly better.} 10. Bd3 {[%emt 0:00:27]} O-O {[%emt 0:00:27]} 11. c3 {[%emt 0:00:06] Prevents Nb4.} Qd7 {[%emt 0:06:23]} 12. O-O {[%emt 0:00:48]} Rfc8 {[%emt 0:00:40]} 13. Rfe1 {[%emt 0:01:06]} Nb8 {[%emt 0:00:58]} 14. Re2 {[%emt 0:02:51] White is much more active. The black rooks are badly placed.} a6 {[%emt 0:01:41]} 15. Na3 {[%emt 0:00:12]} Nc6 {[%emt 0:00:40]} 16. Rae1 {[%emt 0:00:07]} e6 {[%emt 0:00:41] [#]} 17. Bg5 $146 {[%emt 0:03:38]} (17. Nc2 $16) ({Predecessor:} 17. Nc2 b5 18. a3 Ne8 19. h4 Nd6 20. h5 Re8 21. Ne3 Rac8 22. h6 Bf8 23. Bxd6 Qxd6 24. Nxd5 {1-0 (29) Okhotnik,V (2405)-Cioara,A (2345) Nyiregyhaza 1998}) 17... Ne8 $1 $14 {[%emt 0:00:14]} 18. Nc2 {[%emt 0:00:32]} b5 {[%emt 0:18:25]} (18... f6 $11 {deserves consideration.} 19. Bf4 e5 20. dxe5 fxe5 21. Bxe5 Nxe5 22. Rxe5 Bxe5 23. Rxe5 Nc7) 19. a3 {[%emt 0:00:28]} Nd6 {[%emt 0:14:34]} (19... Nc7 $14) 20. h4 {[%emt 0:03:32]} (20. Ne3 $16) 20... f5 {[%emt 0:12:59]} 21. h5 {[%emt 0:04:13]} ({Don't play} 21. Rxe6 Ne4 22. Rxc6 (22. Bxe4 $2 dxe4 23. Qd1 Qxe6 $19) 22... Rxc6 $11) 21... Re8 {[%emt 0:00:30]} 22. Qg3 {[%emt 0:20:35]} Ne4 {[%emt 0:05:02]} 23. Bxe4 {[%emt 0:01:30]} dxe4 {[%emt 0:00:30]} 24. hxg6 {[%emt 0:00:30]} hxg6 {[%emt 0:00:30]} 25. Bf4 {[%emt 0:00:30]} Kf7 {[%emt 0:00:30]} 26. f3 $1 {[%emt 0:00:30]} exf3 {[%emt 0:02:48]} 27. gxf3 {[%emt 0:01:02]} Bf6 {[%emt 0:00:30][%cal Og6g5]} 28. Rg2 {[%emt 0:04:26]} Rg8 {[%emt 0:00:45]} 29. Bg5 {[%emt 0:00:02]} Bxg5 {[%emt 0:05:17]} 30. Qxg5 {[%emt 0:00:02]} Rae8 {[%emt 0:01:43]} 31. Nb4 {[%emt 0:04:17]} (31. f4 $16) 31... Nxb4 {[%emt 0:03:46]} 32. axb4 {[%emt 0:00:02]} Qd8 {[%emt 0:01:34]} 33. Qh6 {[%emt 0:02:29]} Qf6 {[%emt 0:01:28]} 34. Qh7+ {[%emt 0:00:53]} Rg7 {[%emt 0:00:32]} 35. Qh2 {[%emt 0:00:02]} Rgg8 {[%emt 0:01:56]} 36. Qd6 {[%emt 0:02:09]} Rh8 {[%emt 0:04:03][%cal Oh8h1]} 37. Ra1 {[%emt 0:03:54]} ({White should try} 37. Kf2 $1 $16) 37... Qh4 $132 {[%emt 0:06:35][%mdl 2048] Black is not keeping still} 38. Qxa6 {[%emt 0:00:19]} Qf4 {[%emt 0:01:31] Threatens to win with ...Qe3+.} 39. Rf2 $2 {[%emt 0:07:19][%mdl 8192]} (39. d5 $11) 39... Re7 $2 {[%emt 0:04:37]} (39... Qg5+ 40. Kf1 Qe3 41. Qa7+ Re7) 40. Qa2 $2 {[%emt 0:19:50]} ({Not} 40. Kf1 $2 e5 41. Kg1 exd4 $19) (40. Rg2) 40... Rh3 $2 {[%emt 0:02:13]} (40... Qg5+ 41. Kf1 Qe3) 41. Qa8 $2 {[%emt 0:31:05]} (41. b3) 41... Rg3+ $2 {[%emt 0:17:27]} (41... Kg7 $19 42. Kf1 e5) 42. Kf1 {[%emt 0:00:00]} Qe3 {[%emt 0:00:30]} 43. Rd1 {[%emt 0:00:00] Against Qd3+} Re8 {[%emt 0:14:15]} 44. Qb7+ {[%emt 0:21:03]} Kf6 {[%emt 0:00:30]} (44... Re7 $11 45. Qxb5 (45. Qc6 Rh3 $15) 45... Rh3) 45. Qxb5 $14 {[%emt 0:00:30] Dancing on a razor blade.} Rh8 {[%emt 0:00:30][%cal Rh8h1]} 46. Qe5+ $1 {[%emt 0:00:30]} Qxe5 {[%emt 0:00:30]} 47. dxe5+ {[%emt 0:00:30]} Kxe5 {[%emt 0:00:30][%mdl 4096] Endgame KRR-KRR} 48. Ke2 {[%emt 0:00:30]} ({Better is} 48. Rd3 $16 {f4+ is the strong threat.} g5 49. b5) 48... f4 $11 {[%emt 0:00:30]} 49. b5 {[%emt 0:00:30]} g5 $1 {[%emt 0:00:30]} 50. c4 {[%emt 0:00:30]} g4 {[%emt 0:00:30]} 51. Rd3 {[%emt 0:00:30]} gxf3+ {[%emt 0:00:30]} 52. Rdxf3 {[%emt 0:00:30]} Rxf3 {[%emt 0:00:30]} 53. Rxf3 {[%emt 0:00:30] Black must now prevent c5. KR-KR} Rh2+ $2 {[%emt 0:00:30][%mdl 8192]} (53... Ke4 $11 {and Black has nothing to worry.}) 54. Rf2 $18 {[%emt 0:00:30]} Rh3 {[%emt 0:00:30] [#]} 55. Kd2 $1 {[%emt 0:00:30]} Ke4 {[%emt 0:00:30]} 56. Kc2 {[%emt 0:00:30]} Ke3 $2 {[%emt 0:00:30]} (56... Kd4 57. Rxf4+ Kc5) 57. Rd2 {[%emt 0:00:30] Intending Rd3+ and mate.} f3 {[%emt 0:00:30] [#]} 58. b6 $1 {[%emt 0:00:30] And now b7 would win.} Rh7 {[%emt 0:00:30]} 59. c5 {[%emt 0:00:30]} Rb7 {[%emt 0:00:30]} 60. b4 {[%emt 0:00:30][%cal Bb2b4,Bb4b5][%mdl 32]} f2 {[%emt 0:00:30] [#]} 61. Rxf2 $3 {[%emt 0:00:30][%mdl 512]} Kxf2 {[%emt 0:00:30]} 62. b5 {[%emt 0:00:30] Hoping for Kc3.} Ke3 {[%emt 0:00:30]} 63. Kc3 {[%emt 0:00:30]} Rb8 {[%emt 0:00:30]} 64. Kc4 {[%emt 0:00:30] Quite a comeback for White.  Weighted Error Value: White=0.38/Black=0.68} 1-0

[Event "Tirnavia Reti Memorial-GM 2022"]
[Site "Trnava"]
[Date "2022.08.12"]
[Round "3.9"]
[White "Svana, Peter"]
[Black "Skreko, Igor"]
[Result "1-0"]
[ECO "B90"]
[WhiteElo "2280"]
[BlackElo "2193"]
[Annotator "TA"]
[PlyCount "89"]
[EventDate "2022.08.10"]
[EventType "tourn"]
[EventCountry "SVK"]
[SourceTitle "playchess.com"]
[Source "ChessBase"]
[SourceQuality "1"]
[TimeControl "40/5400+30:1800+30"]

{[%evp 12,89,18,16,22,20,36,31,34,-37,-10,-26,-40,-42,-47,-50,0,0,25,-27,-23,-42,58,0,20,7,87,76,155,53,56,64,55,25,52,43,52,55,106,91,311,315,306,242,320,327,369,337,363,346,439,419,432,375,371,365,542,543,526,527,537,520,529,490,519,494,574,535,1128,1118,1078,991,2077,1696,2110,2050,1814,1516,1182,1177]} 1. e4 {[%emt 0:00:10]} c5 {[%emt 0:00:14]} 2. Nf3 {[%emt 0:00:07]} d6 {[%emt 0:00:04]} 3. d4 {[%emt 0:00:05]} cxd4 {[%emt 0:00:05]} 4. Nxd4 {[%emt 0:00:09]} Nf6 {[%emt 0:00:03]} 5. Nc3 {[%emt 0:00:10]} a6 {[%emt 0:00:04]} 6. h3 {[%emt 0:00:16]} e5 {[%emt 0:00:06]} 7. Nde2 {[%emt 0:04:05]} h5 {[%emt 0:00:27] B90: Sicilian Najdorf: Unusual White 6th moves, 6 Be3 Ng4 and 6 Be3 e5.} 8. g3 {[%emt 0:00:25]} Be7 {[%emt 0:01:00]} 9. Bg2 {[%emt 0:00:56]} Be6 {[%emt 0:01:29] White is slightly better.} 10. Nd5 {[%emt 0:06:43]} (10. a4 $14) 10... Nxd5 $1 $15 {[%emt 0:01:54]} 11. exd5 {[%emt 0:00:25]} Bf5 {[%emt 0:00:08]} 12. c4 {[%emt 0:01:33]} Nd7 {[%emt 0:02:01]} 13. O-O {[%emt 0:01:24] [#]} Qc8 $146 {[%emt 0:19:47]} ({Black should try} 13... Rc8 $15) ({Predecessor:} 13... O-O 14. b3 b5 15. f4 exf4 16. Nxf4 Bf6 17. Ba3 Bxa1 18. Qxa1 bxc4 19. Bxd6 Qb6+ {0-1 (55) Nemeth Junior,H (2010)-Drygalov,S (2490) Chess.com INT 2021}) 14. b3 $11 {[%emt 0:00:57]} b5 {[%emt 0:01:22]} 15. cxb5 {[%emt 0:00:48]} ({Better is} 15. Be3) 15... axb5 {[%emt 0:00:11] next ...Bc2 is good for Black.} 16. Be3 {[%emt 0:00:13]} Nc5 {[%emt 0:03:21]} (16... Nf6 $15) 17. Kh2 {[%emt 0:07:19]} (17. Rc1 $1 $14) 17... Nd3 {[%emt 0:02:09]} 18. Qd2 {[%emt 0:04:33]} Bf6 {[%emt 0:01:24] [#]} (18... b4 $11 {remains equal.}) 19. Nc3 $1 $16 {[%emt 0:01:57]} Qd7 {[%emt 0:04:54] [#]} (19... O-O $142) 20. Ne4 {[%emt 0:02:15]} (20. Be4 $1 $16 {[%cal Re4d3]} Nc5 21. Bxc5 dxc5 22. d6 (22. Bxf5 Qxf5 23. Nxb5 O-O $16)) 20... Bxe4 $14 {[%emt 0:00:18]} 21. Bxe4 {[%emt 0:00:06]} Nc5 {[%emt 0:00:17]} 22. Bg2 {[%emt 0:01:57]} (22. Bxc5 $5 dxc5 23. Qc2 $14) 22... O-O {[%emt 0:01:49]} 23. b4 {[%emt 0:02:54]} Na4 {[%emt 0:01:20]} 24. Rac1 {[%emt 0:00:27]} Rfc8 {[%emt 0:02:28]} (24... e4 $14) 25. Rc6 $16 {[%emt 0:00:33]} Rxc6 $2 {[%emt 0:03:58] This costs Black the game.} (25... e4 $16 {was worth a try.}) 26. dxc6 $18 {[%emt 0:00:50]} Qc7 {[%emt 0:00:13]} 27. Rc1 {[%emt 0:01:59]} g6 {[%emt 0:03:32]} 28. Qd5 {[%emt 0:03:17]} Rb8 {[%emt 0:19:12]} 29. Bf1 {[%emt 0:03:59]} Nb6 {[%emt 0:02:12]} 30. Qxb5 {[%emt 0:00:56]} Bd8 {[%emt 0:01:46]} 31. a4 {[%emt 0:03:00]} d5 {[%emt 0:05:14]} 32. Bxb6 {[%emt 0:06:37]} Rxb6 {[%emt 0:07:18]} 33. Qc5 {[%emt 0:07:39]} Be7 {[%emt 0:08:22] [#]} (33... Rb8 {might work better.} 34. b5 d4) 34. Qxb6 $3 {[%emt 0:01:30][%mdl 512] White is clearly winning.} Qxb6 {[%emt 0:00:30]} 35. c7 {[%emt 0:00:30]} Qxf2+ {[%emt 0:00:30]} 36. Bg2 {[%emt 0:00:30]} h4 {[%emt 0:00:30]} 37. c8=Q+ {[%emt 0:00:30]} Kg7 {[%emt 0:00:30]} 38. Qg4 {[%emt 0:00:30] Prevents Bg5.} Qe3 {[%emt 0:00:30]} 39. Rc7 {[%emt 0:00:30]} Bg5 {[%emt 0:00:30] Threatens to win with ...hxg3+.} 40. Qf3 {[%emt 0:00:30]} hxg3+ {[%emt 0:00:30]} 41. Kh1 {[%emt 0:30:30]} Qe1+ {[%emt 0:30:30]} 42. Qf1 {[%emt 0:00:30]} Qf2 {[%emt 0:00:30]} 43. Qxf2 {[%emt 0:00:30]} gxf2 {[%emt 0:00:30]} 44. Bf1 {[%emt 0:00:30]} e4 {[%emt 0:00:30]} 45. Rd7 {[%emt 0:02:18] Weighted Error Value: White=0.15 (very precise) /Black=0.50} 1-0